Workbook

Sheet Visão Geral da Festa
B3: Visão Geral da Festa
B6: EVENTO | D6: RESUMO DOS CONVIDADOS | H6: ="OUTSTANDING RSVPS: "&OutstandingRSVPs -> OUTSTANDING RSVPS: 2
B7: 75º Aniversário da Vovó | D7: RSVP - VISÃO GERAL | F7: CUSTOS POR CONVIDADO | H7: VALOR DO ORÇAMENTO
D8: Convidados Confirmados | E8: Total Confirmado | F8: Alimentos | G8: Outros | H8: Total
B9: DATA | D9: Adultos | E9: =SUMIF(GuestTable[Comparecerá?],"=Sim",GuestTable[ADULTOS]) -> 26 | F9: =FoodTable[[#Totals],[CUSTO POR ADULTO]] -> R$ 12.69 | G9: =EssentialCostPerGuest -> R$ 18.70 | H9: =(AttendeeSummary[[#This Row],[Alimentos]]+AttendeeSummary[[#This Row],[Outros]])*AdultTotal -> R$ 816.03
B10: 2011-06-14 | D10: Crianças | E10: =SUMIF(GuestTable[Comparecerá?],"=Sim",GuestTable[CRIANÇAS]) -> 20 | F10: =FoodTable[[#Totals],[CUSTO POR CRIANÇA]] -> R$ 7.25 | G10: =EssentialCostPerGuest -> R$ 18.70 | H10: =(AttendeeSummary[[#This Row],[Alimentos]]+AttendeeSummary[[#This Row],[Outros]])*ChildrenTotal -> R$ 518.97
D11: Total | E11: =SUBTOTAL(109,AttendeeSummary[Total Confirmado]) -> 46 | F11: ="Méd. "&TEXT(SUBTOTAL(101,AttendeeSummary[Alimentos]),"R$ #.##0,00") -> Méd. R$ 9,97 | G11: ="Méd. "&TEXT(SUBTOTAL(101,AttendeeSummary[Outros]),"R$ #.##0,00") -> Méd. R$ 18,70 | H11: =SUBTOTAL(109,AttendeeSummary[Total]) -> R$ 1,335.00
B12: HORA
B13: 14:00 às 16:00
B15: LOCAL | D15: RESUMO DO ORÇAMENTO
B16: Casa da Tia Kim | D16: ITEM | E16: CONTAGEM | F16: VALOR DO ORÇAMENTO | G16: CUSTO TOTAL | H16: DIFERENÇA
D17: Comes e Bebes | E17: =COUNTA(FoodTable[ITEM DE COMES E BEBES]) -> 18 | F17: R$ 500.00 | G17: =FoodTable[[#Totals],[CUSTO TOTAL]] -> R$ 475.00 | H17: =BudgetOverview[[#This Row],[VALOR DO ORÇAMENTO]]-BudgetOverview[[#This Row],[CUSTO TOTAL]] -> R$ 25.00
D18: =Table1Header -> Equipamentos e Suprimentos | E18: =COUNTA(Table1Budget[Equipamentos e Suprimentos]) -> 7 | F18: R$ 400.00 | G18: =Table1Budget[[#Totals],[Custo]] -> R$ 400.00 | H18: =BudgetOverview[[#This Row],[VALOR DO ORÇAMENTO]]-BudgetOverview[[#This Row],[CUSTO TOTAL]] -> R$ 0.00
D19: =Table2Header -> Decorações | E19: =COUNTA(Table2Budget[Decorações]) -> 4 | F19: R$ 150.00 | G19: =Table2Budget[[#Totals],[Custo]] -> R$ 175.00 | H19: =BudgetOverview[[#This Row],[VALOR DO ORÇAMENTO]]-BudgetOverview[[#This Row],[CUSTO TOTAL]] -> -R$ 25.00
D20: =Table3Header -> Outros | E20: =COUNTA(Table3Budget[Outros]) -> 4 | F20: R$ 300.00 | G20: =Table3Budget[[#Totals],[Custo]] -> R$ 285.00 | H20: =BudgetOverview[[#This Row],[VALOR DO ORÇAMENTO]]-BudgetOverview[[#This Row],[CUSTO TOTAL]] -> R$ 15.00
D21: Total | E21: =SUBTOTAL(109,BudgetOverview[CONTAGEM]) -> 33 | F21: =SUBTOTAL(109,BudgetOverview[VALOR DO ORÇAMENTO]) -> R$ 1,350.00 | G21: =SUBTOTAL(109,BudgetOverview[CUSTO TOTAL]) -> R$ 1,335.00 | H21: =BudgetOverview[[#Totals],[VALOR DO ORÇAMENTO]]-BudgetOverview[[#Totals],[CUSTO TOTAL]] -> R$ 15.00

Sheet Lista de Convidados
B3: Lista de Convidados
B7: NOME | C7: ENDEREÇO | D7: CIDADE | E7: ESTADO | F7: CEP | G7: TELEFONE | H7: EMAIL | I7: Comparecerá? | J7: CRIANÇAS | K7: ADULTOS | L7: TOTAL
B8: Família 1 | C8: Endereço 1 | D8: Cidade 1 | E8: Estado 1 | F8: CEP 1 | G8: Telefone 1 | H8: Email1 | I8: Não | J8: 2 | K8: 2 | L8: =SUM(GuestTable[[#This Row],[CRIANÇAS]:[ADULTOS]]) -> 4
B9: Família 2 | C9: Endereço 2 | D9: Cidade 2 | E9: Estado 2 | F9: CEP 2 | G9: Telefone 2 | H9: Email2 | I9: Sim | J9: 1 | K9: 1 | L9: =SUM(GuestTable[[#This Row],[CRIANÇAS]:[ADULTOS]]) -> 2
B10: Família 3 | C10: Endereço 3 | D10: Cidade 3 | E10: Estado 3 | F10: CEP 3 | G10: Telefone 3 | H10: Email3 | I10: Sim | J10: 3 | K10: 3 | L10: =SUM(GuestTable[[#This Row],[CRIANÇAS]:[ADULTOS]]) -> 6
B11: Família 4 | C11: Endereço 4 | D11: Cidade 4 | E11: Estado 4 | F11: CEP 4 | G11: Telefone 4 | H11: Email4 | K11: 2 | L11: =SUM(GuestTable[[#This Row],[CRIANÇAS]:[ADULTOS]]) -> 2
B12: Família 5 | C12: Endereço 5 | D12: Cidade 5 | E12: Estado 5 | F12: CEP 5 | G12: Telefone 5 | H12: Email5 | I12: Sim | J12: 4 | K12: 3 | L12: =SUM(GuestTable[[#This Row],[CRIANÇAS]:[ADULTOS]]) -> 7
B13: Família 6 | C13: Endereço 6 | D13: Cidade 6 | E13: Estado 6 | F13: CEP 6 | G13: Telefone 6 | H13: Email6 | I13: Sim | J13: 2 | K13: 2 | L13: =SUM(GuestTable[[#This Row],[CRIANÇAS]:[ADULTOS]]) -> 4
B14: Família 7 | C14: Endereço 7 | D14: Cidade 7 | E14: Estado 7 | F14: CEP 7 | G14: Telefone 7 | H14: Email7 | I14: Sim | J14: 1 | K14: 4 | L14: =SUM(GuestTable[[#This Row],[CRIANÇAS]:[ADULTOS]]) -> 5
B15: Família 8 | C15: Endereço 8 | D15: Cidade 8 | E15: Estado 8 | F15: CEP 8 | G15: Telefone 8 | H15: Email8 | I15: Não | J15: 5 | K15: 3 | L15: =SUM(GuestTable[[#This Row],[CRIANÇAS]:[ADULTOS]]) -> 8
B16: Família 9 | C16: Endereço 9 | D16: Cidade 9 | E16: Estado 9 | F16: CEP 9 | G16: Telefone 9 | H16: Email9 | I16: Sim | J16: 3 | K16: 2 | L16: =SUM(GuestTable[[#This Row],[CRIANÇAS]:[ADULTOS]]) -> 5
B17: Família 10 | C17: Endereço 10 | D17: Cidade 10 | E17: Estado 10 | F17: CEP 10 | G17: Telefone 10 | H17: Email10 | I17: Sim | K17: 4 | L17: =SUM(GuestTable[[#This Row],[CRIANÇAS]:[ADULTOS]]) -> 4
B18: Família 11 | C18: Endereço 11 | D18: Cidade 11 | E18: Estado 11 | F18: CEP 11 | G18: Telefone 11 | H18: Email11 | I18: Sim | J18: 3 | K18: 5 | L18: =SUM(GuestTable[[#This Row],[CRIANÇAS]:[ADULTOS]]) -> 8
B19: Família 12 | C19: Endereço 12 | D19: Cidade 12 | E19: Estado 12 | F19: CEP 12 | G19: Telefone 12 | H19: Email12 | I19: Não | J19: 2 | K19: 3 | L19: =SUM(GuestTable[[#This Row],[CRIANÇAS]:[ADULTOS]]) -> 5
B20: Família 13 | C20: Endereço 13 | D20: Cidade 13 | E20: Estado 13 | F20: CEP 13 | G20: Telefone 13 | H20: Email13 | I20: Sim | J20: 3 | K20: 2 | L20: =SUM(GuestTable[[#This Row],[CRIANÇAS]:[ADULTOS]]) -> 5
B21: Família 14 | C21: Endereço 14 | D21: Cidade 14 | E21: Estado 14 | F21: CEP 14 | G21: Telefone 14 | H21: Email14 | I21: Não | K21: 1 | L21: =SUM(GuestTable[[#This Row],[CRIANÇAS]:[ADULTOS]]) -> 1
B22: Família 15 | C22: Endereço 15 | D22: Cidade 15 | E22: Estado 15 | F22: CEP 15 | G22: Telefone 15 | H22: Email15 | K22: 2 | L22: =SUM(GuestTable[[#This Row],[CRIANÇAS]:[ADULTOS]]) -> 2

Sheet Comes e Bebes
B3: Comes e Bebes
B5: Insira o custo e as porções estimadas para calcular automaticamente o total de unidades e o custo por porção com base no atendimento total
B6: ITEM DE COMES E BEBES | C6: CUSTO TOTAL | D6: PORÇÃO POR CRIANÇA | E6: PORÇÃO POR ADULTO | F6: TOTAL DE PORÇÕES | G6: CUSTO POR PORÇÃO | H6: CUSTO POR CRIANÇA | I6: CUSTO POR ADULTO | J6: OBSERVAÇÕES
B7: Refrigerante | C7: R$ 15.00 | D7: 0.5 | E7: 2 | F7: =(FoodTable[[#This Row],[PORÇÃO POR CRIANÇA]]*ChildrenTotal)+(FoodTable[[#This Row],[PORÇÃO POR ADULTO]]*AdultTotal) -> 62 | G7: =IFERROR(FoodTable[[#This Row],[CUSTO TOTAL]]/FoodTable[[#This Row],[TOTAL DE PORÇÕES]],"") -> $0.24 | H7: =IFERROR(FoodTable[[#This Row],[CUSTO POR PORÇÃO]]*FoodTable[[#This Row],[PORÇÃO POR CRIANÇA]],"") -> R$ 0.12 | I7: =IFERROR(FoodTable[[#This Row],[CUSTO POR PORÇÃO]]*FoodTable[[#This Row],[PORÇÃO POR ADULTO]],"") -> R$ 0.48 | J7: Garrafas de 2 litros
B8: Suco de caixinha | C8: R$ 15.00 | D8: 2 | E8: 0 | F8: =(FoodTable[[#This Row],[PORÇÃO POR CRIANÇA]]*ChildrenTotal)+(FoodTable[[#This Row],[PORÇÃO POR ADULTO]]*AdultTotal) -> 40 | G8: =IFERROR(FoodTable[[#This Row],[CUSTO TOTAL]]/FoodTable[[#This Row],[TOTAL DE PORÇÕES]],"") -> R$ 0.38 | H8: =IFERROR(FoodTable[[#This Row],[CUSTO POR PORÇÃO]]*FoodTable[[#This Row],[PORÇÃO POR CRIANÇA]],"") -> R$ 0.75 | I8: =IFERROR(FoodTable[[#This Row],[CUSTO POR PORÇÃO]]*FoodTable[[#This Row],[PORÇÃO POR ADULTO]],"") -> R$ 0.00 | J8: Maçã e uva
B9: Vinho | C9: R$ 50.00 | D9: 0 | E9: 2 | F9: =(FoodTable[[#This Row],[PORÇÃO POR CRIANÇA]]*ChildrenTotal)+(FoodTable[[#This Row],[PORÇÃO POR ADULTO]]*AdultTotal) -> 52 | G9: =IFERROR(FoodTable[[#This Row],[CUSTO TOTAL]]/FoodTable[[#This Row],[TOTAL DE PORÇÕES]],"") -> R$ 0.96 | H9: =IFERROR(FoodTable[[#This Row],[CUSTO POR PORÇÃO]]*FoodTable[[#This Row],[PORÇÃO POR CRIANÇA]],"") -> R$ 0.00 | I9: =IFERROR(FoodTable[[#This Row],[CUSTO POR PORÇÃO]]*FoodTable[[#This Row],[PORÇÃO POR ADULTO]],"") -> R$ 1.92
B10: Bolo | C10: R$ 75.00 | D10: 1 | E10: 1 | F10: =(FoodTable[[#This Row],[PORÇÃO POR CRIANÇA]]*ChildrenTotal)+(FoodTable[[#This Row],[PORÇÃO POR ADULTO]]*AdultTotal) -> 46 | G10: =IFERROR(FoodTable[[#This Row],[CUSTO TOTAL]]/FoodTable[[#This Row],[TOTAL DE PORÇÕES]],"") -> R$ 1.63 | H10: =IFERROR(FoodTable[[#This Row],[CUSTO POR PORÇÃO]]*FoodTable[[#This Row],[PORÇÃO POR CRIANÇA]],"") -> R$ 1.63 | I10: =IFERROR(FoodTable[[#This Row],[CUSTO POR PORÇÃO]]*FoodTable[[#This Row],[PORÇÃO POR ADULTO]],"") -> R$ 1.63 | J10: Encomendar na padaria local
B11: Sorvete | C11: R$ 20.00 | D11: 1 | E11: 1.5 | F11: =(FoodTable[[#This Row],[PORÇÃO POR CRIANÇA]]*ChildrenTotal)+(FoodTable[[#This Row],[PORÇÃO POR ADULTO]]*AdultTotal) -> 59 | G11: =IFERROR(FoodTable[[#This Row],[CUSTO TOTAL]]/FoodTable[[#This Row],[TOTAL DE PORÇÕES]],"") -> R$ 0.34 | H11: =IFERROR(FoodTable[[#This Row],[CUSTO POR PORÇÃO]]*FoodTable[[#This Row],[PORÇÃO POR CRIANÇA]],"") -> R$ 0.34 | I11: =IFERROR(FoodTable[[#This Row],[CUSTO POR PORÇÃO]]*FoodTable[[#This Row],[PORÇÃO POR ADULTO]],"") -> R$ 0.51
B12: Brigadeiro de colher | C12: R$ 15.00 | D12: 1 | E12: 0 | F12: =(FoodTable[[#This Row],[PORÇÃO POR CRIANÇA]]*ChildrenTotal)+(FoodTable[[#This Row],[PORÇÃO POR ADULTO]]*AdultTotal) -> 20 | G12: =IFERROR(FoodTable[[#This Row],[CUSTO TOTAL]]/FoodTable[[#This Row],[TOTAL DE PORÇÕES]],"") -> R$ 0.75 | H12: =IFERROR(FoodTable[[#This Row],[CUSTO POR PORÇÃO]]*FoodTable[[#This Row],[PORÇÃO POR CRIANÇA]],"") -> R$ 0.75 | I12: =IFERROR(FoodTable[[#This Row],[CUSTO POR PORÇÃO]]*FoodTable[[#This Row],[PORÇÃO POR ADULTO]],"") -> R$ 0.00 | J12: Encomendar na doceira
B13: Cogumelos recheados | C13: R$ 32.00 | D13: 1 | E13: 2 | F13: =(FoodTable[[#This Row],[PORÇÃO POR CRIANÇA]]*ChildrenTotal)+(FoodTable[[#This Row],[PORÇÃO POR ADULTO]]*AdultTotal) -> 72 | G13: =IFERROR(FoodTable[[#This Row],[CUSTO TOTAL]]/FoodTable[[#This Row],[TOTAL DE PORÇÕES]],"") -> R$ 0.44 | H13: =IFERROR(FoodTable[[#This Row],[CUSTO POR PORÇÃO]]*FoodTable[[#This Row],[PORÇÃO POR CRIANÇA]],"") -> R$ 0.44 | I13: =IFERROR(FoodTable[[#This Row],[CUSTO POR PORÇÃO]]*FoodTable[[#This Row],[PORÇÃO POR ADULTO]],"") -> R$ 0.89 | J13: Cogumelos de Paris recheados com cream cheese e carne seca
B14: Bruschetta | C14: R$ 22.00 | D14: 0 | E14: 3 | F14: =(FoodTable[[#This Row],[PORÇÃO POR CRIANÇA]]*ChildrenTotal)+(FoodTable[[#This Row],[PORÇÃO POR ADULTO]]*AdultTotal) -> 78 | G14: =IFERROR(FoodTable[[#This Row],[CUSTO TOTAL]]/FoodTable[[#This Row],[TOTAL DE PORÇÕES]],"") -> R$ 0.28 | H14: =IFERROR(FoodTable[[#This Row],[CUSTO POR PORÇÃO]]*FoodTable[[#This Row],[PORÇÃO POR CRIANÇA]],"") -> R$ 0.00 | I14: =IFERROR(FoodTable[[#This Row],[CUSTO POR PORÇÃO]]*FoodTable[[#This Row],[PORÇÃO POR ADULTO]],"") -> R$ 0.85 | J14: Tomate e manjericão
B15: Salmão defumado | C15: R$ 50.00 | D15: 1 | E15: 2 | F15: =(FoodTable[[#This Row],[PORÇÃO POR CRIANÇA]]*ChildrenTotal)+(FoodTable[[#This Row],[PORÇÃO POR ADULTO]]*AdultTotal) -> 72 | G15: =IFERROR(FoodTable[[#This Row],[CUSTO TOTAL]]/FoodTable[[#This Row],[TOTAL DE PORÇÕES]],"") -> R$ 0.69 | H15: =IFERROR(FoodTable[[#This Row],[CUSTO POR PORÇÃO]]*FoodTable[[#This Row],[PORÇÃO POR CRIANÇA]],"") -> R$ 0.69 | I15: =IFERROR(FoodTable[[#This Row],[CUSTO POR PORÇÃO]]*FoodTable[[#This Row],[PORÇÃO POR ADULTO]],"") -> R$ 1.39
B16: Pãezinhos | C16: R$ 20.00 | D16: 1 | E16: 2 | F16: =(FoodTable[[#This Row],[PORÇÃO POR CRIANÇA]]*ChildrenTotal)+(FoodTable[[#This Row],[PORÇÃO POR ADULTO]]*AdultTotal) -> 72 | G16: =IFERROR(FoodTable[[#This Row],[CUSTO TOTAL]]/FoodTable[[#This Row],[TOTAL DE PORÇÕES]],"") -> R$ 0.28 | H16: =IFERROR(FoodTable[[#This Row],[CUSTO POR PORÇÃO]]*FoodTable[[#This Row],[PORÇÃO POR CRIANÇA]],"") -> R$ 0.28 | I16: =IFERROR(FoodTable[[#This Row],[CUSTO POR PORÇÃO]]*FoodTable[[#This Row],[PORÇÃO POR ADULTO]],"") -> R$ 0.56 | J16: 4 pacotes - sortidos
B17: Cream cheese | C17: R$ 10.00 | D17: 1 | E17: 2 | F17: =(FoodTable[[#This Row],[PORÇÃO POR CRIANÇA]]*ChildrenTotal)+(FoodTable[[#This Row],[PORÇÃO POR ADULTO]]*AdultTotal) -> 72 | G17: =IFERROR(FoodTable[[#This Row],[CUSTO TOTAL]]/FoodTable[[#This Row],[TOTAL DE PORÇÕES]],"") -> R$ 0.14 | H17: =IFERROR(FoodTable[[#This Row],[CUSTO POR PORÇÃO]]*FoodTable[[#This Row],[PORÇÃO POR CRIANÇA]],"") -> R$ 0.14 | I17: =IFERROR(FoodTable[[#This Row],[CUSTO POR PORÇÃO]]*FoodTable[[#This Row],[PORÇÃO POR ADULTO]],"") -> R$ 0.28 | J17: 2 potes grandes
B18: Alcaparras | C18: R$ 12.00 | D18: 1 | E18: 2 | F18: =(FoodTable[[#This Row],[PORÇÃO POR CRIANÇA]]*ChildrenTotal)+(FoodTable[[#This Row],[PORÇÃO POR ADULTO]]*AdultTotal) -> 72 | G18: =IFERROR(FoodTable[[#This Row],[CUSTO TOTAL]]/FoodTable[[#This Row],[TOTAL DE PORÇÕES]],"") -> R$ 0.17 | H18: =IFERROR(FoodTable[[#This Row],[CUSTO POR PORÇÃO]]*FoodTable[[#This Row],[PORÇÃO POR CRIANÇA]],"") -> R$ 0.17 | I18: =IFERROR(FoodTable[[#This Row],[CUSTO POR PORÇÃO]]*FoodTable[[#This Row],[PORÇÃO POR ADULTO]],"") -> R$ 0.33 | J18: 3 vidros
B19: Coxinhas | C19: R$ 45.00 | D19: 2 | E19: 4 | F19: =(FoodTable[[#This Row],[PORÇÃO POR CRIANÇA]]*ChildrenTotal)+(FoodTable[[#This Row],[PORÇÃO POR ADULTO]]*AdultTotal) -> 144 | G19: =IFERROR(FoodTable[[#This Row],[CUSTO TOTAL]]/FoodTable[[#This Row],[TOTAL DE PORÇÕES]],"") -> R$ 0.31 | H19: =IFERROR(FoodTable[[#This Row],[CUSTO POR PORÇÃO]]*FoodTable[[#This Row],[PORÇÃO POR CRIANÇA]],"") -> R$ 0.63 | I19: =IFERROR(FoodTable[[#This Row],[CUSTO POR PORÇÃO]]*FoodTable[[#This Row],[PORÇÃO POR ADULTO]],"") -> R$ 1.25 | J19: Comprar na rotisserie local
B20: Hummus | C20: R$ 10.00 | D20: 4 | E20: 6 | F20: =(FoodTable[[#This Row],[PORÇÃO POR CRIANÇA]]*ChildrenTotal)+(FoodTable[[#This Row],[PORÇÃO POR ADULTO]]*AdultTotal) -> 236 | G20: =IFERROR(FoodTable[[#This Row],[CUSTO TOTAL]]/FoodTable[[#This Row],[TOTAL DE PORÇÕES]],"") -> R$ 0.04 | H20: =IFERROR(FoodTable[[#This Row],[CUSTO POR PORÇÃO]]*FoodTable[[#This Row],[PORÇÃO POR CRIANÇA]],"") -> R$ 0.17 | I20: =IFERROR(FoodTable[[#This Row],[CUSTO POR PORÇÃO]]*FoodTable[[#This Row],[PORÇÃO POR ADULTO]],"") -> R$ 0.25 | J20: Preparar na noite anterior
B21: Pão pita crocante com parmesão | C21: R$ 14.00 | D21: 4 | E21: 6 | F21: =(FoodTable[[#This Row],[PORÇÃO POR CRIANÇA]]*ChildrenTotal)+(FoodTable[[#This Row],[PORÇÃO POR ADULTO]]*AdultTotal) -> 236 | G21: =IFERROR(FoodTable[[#This Row],[CUSTO TOTAL]]/FoodTable[[#This Row],[TOTAL DE PORÇÕES]],"") -> R$ 0.06 | H21: =IFERROR(FoodTable[[#This Row],[CUSTO POR PORÇÃO]]*FoodTable[[#This Row],[PORÇÃO POR CRIANÇA]],"") -> R$ 0.24 | I21: =IFERROR(FoodTable[[#This Row],[CUSTO POR PORÇÃO]]*FoodTable[[#This Row],[PORÇÃO POR ADULTO]],"") -> R$ 0.36 | J21: Preparar na noite anterior
B22: Vegetais variados | C22: R$ 30.00 | D22: 4 | E22: 10 | F22: =(FoodTable[[#This Row],[PORÇÃO POR CRIANÇA]]*ChildrenTotal)+(FoodTable[[#This Row],[PORÇÃO POR ADULTO]]*AdultTotal) -> 340 | G22: =IFERROR(FoodTable[[#This Row],[CUSTO TOTAL]]/FoodTable[[#This Row],[TOTAL DE PORÇÕES]],"") -> R$ 0.09 | H22: =IFERROR(FoodTable[[#This Row],[CUSTO POR PORÇÃO]]*FoodTable[[#This Row],[PORÇÃO POR CRIANÇA]],"") -> R$ 0.35 | I22: =IFERROR(FoodTable[[#This Row],[CUSTO POR PORÇÃO]]*FoodTable[[#This Row],[PORÇÃO POR ADULTO]],"") -> R$ 0.88 | J22: Palitos de cenoura, salsão, brócolis, couve-flor, pimentão verde e vermelho
B23: Salgadinhos | C23: R$ 15.00 | D23: 5 | E23: 10 | F23: =(FoodTable[[#This Row],[PORÇÃO POR CRIANÇA]]*ChildrenTotal)+(FoodTable[[#This Row],[PORÇÃO POR ADULTO]]*AdultTotal) -> 360 | G23: =IFERROR(FoodTable[[#This Row],[CUSTO TOTAL]]/FoodTable[[#This Row],[TOTAL DE PORÇÕES]],"") -> R$ 0.04 | H23: =IFERROR(FoodTable[[#This Row],[CUSTO POR PORÇÃO]]*FoodTable[[#This Row],[PORÇÃO POR CRIANÇA]],"") -> R$ 0.21 | I23: =IFERROR(FoodTable[[#This Row],[CUSTO POR PORÇÃO]]*FoodTable[[#This Row],[PORÇÃO POR ADULTO]],"") -> R$ 0.42 | J23: Sortidos: bolinhas de queijo e quibes
B24: Torradas | C24: R$ 25.00 | D24: 5 | E24: 10 | F24: =(FoodTable[[#This Row],[PORÇÃO POR CRIANÇA]]*ChildrenTotal)+(FoodTable[[#This Row],[PORÇÃO POR ADULTO]]*AdultTotal) -> 360 | G24: =IFERROR(FoodTable[[#This Row],[CUSTO TOTAL]]/FoodTable[[#This Row],[TOTAL DE PORÇÕES]],"") -> R$ 0.07 | H24: =IFERROR(FoodTable[[#This Row],[CUSTO POR PORÇÃO]]*FoodTable[[#This Row],[PORÇÃO POR CRIANÇA]],"") -> R$ 0.35 | I24: =IFERROR(FoodTable[[#This Row],[CUSTO POR PORÇÃO]]*FoodTable[[#This Row],[PORÇÃO POR ADULTO]],"") -> R$ 0.69 | J24: Com patês variados
B25: Total | C25: =SUBTOTAL(109,FoodTable[CUSTO TOTAL]) -> R$ 475.00 | D25: =SUBTOTAL(109,FoodTable[PORÇÃO POR CRIANÇA]) -> 34.5 | E25: =SUBTOTAL(109,FoodTable[PORÇÃO POR ADULTO]) -> 65.5 | F25: =SUBTOTAL(109,FoodTable[TOTAL DE PORÇÕES]) -> 2393 | G25: =SUBTOTAL(109,FoodTable[CUSTO POR PORÇÃO]) -> R$ 6.92 | H25: =SUBTOTAL(109,FoodTable[CUSTO POR CRIANÇA]) -> R$ 7.25 | I25: =SUBTOTAL(109,FoodTable[CUSTO POR ADULTO]) -> R$ 12.69

Sheet Outros Itens Essenciais
B3: Outros Itens Essenciais
B6: Equipamentos e Suprimentos | C6: Custo | D6: Comprado | E6: Observações
B7: Aluguel do salão | C7: R$ 250.00 | D7: Sim
B8: Toalhas de mesa | C8: R$ 30.00 | D8: Sim | E8: Aluguel
B9: Mesas e cadeiras | C9: R$ 0.00 | E9: Incluído no aluguel do salão
B10: Guardanapos para bebidas | C10: R$ 25.00
B11: Guardanapos para o jantar | C11: R$ 20.00 | E11: Aluguel
B12: Serviço de mesa | C12: R$ 50.00 | E12: Aluguel
B13: Copos | C13: R$ 25.00 | E13: Aluguel
B14: Total | C14: =SUBTOTAL(109,Table1Budget[Custo]) -> R$ 400.00
B17: Decorações | C17: Custo | D17: Comprado | E17: Observações
B18: Balões | C18: R$ 25.00
B19: Tanque de hélio | C19: R$ 50.00 | E19: Aluguel
B20: Centros de mesa | C20: R$ 100.00 | D20: Sim | E20: 10 no total
B21: Vasos de vidro | C21: R$ 0.00 | E21: Emprestados de Sandy
B22: Total | C22: =SUBTOTAL(109,Table2Budget[Custo]) -> R$ 175.00
B25: Outros | C25: Custo | D25: Comprado | E25: Observações
B26: Convites | C26: R$ 50.00 | D26: Sim
B27: Postagem | C27: R$ 60.00 | D27: Sim
B28: Fotógrafo | C28: R$ 125.00 | E28: 2 horas (14:00 - 16:00)
B29: Lembrancinhas | C29: R$ 50.00
B30: Total | C30: =SUBTOTAL(109,Table3Budget[Custo]) -> R$ 285.00

Sheet Organização de Assentos
A1: Organização de Mesas
AH35: *1 quadrado = aproximadamente 930 centímetros quadrados
A36: Observações | T36: =" Total de convidados confirmados: "&ConfirmedGuests -> Total de convidados confirmados: 46
T37: Você pode usar qualquer um dos arranjos de mesas:
U38: =ROUNDUP(ConfirmedGuests/6,0)&" mesas redondas 137 cm (6 assentos)" -> 8 mesas redondas 137 cm (6 assentos)
U39: =ROUNDUP(ConfirmedGuests/8,0) &" mesas redondas 152 cm (8 assentos)" -> 6 mesas redondas 152 cm (8 assentos)
U40: =ROUNDUP(ConfirmedGuests/10,0)&"mesas redondas 182 cm (10 assentos)" -> 5mesas redondas 182 cm (10 assentos)
U41: =ROUNDUP(ConfirmedGuests/6,0)& " mesas quadradas 76 cm x 182 (6 assentos)" -> 8 mesas quadradas 76 cm x 182 (6 assentos)
U42: =ROUNDUP(ConfirmedGuests/8,0)&" mesas quadradas 76 cm x 246 (8 assentos)" -> 6 mesas quadradas 76 cm x 246 (8 assentos)
T43: (Espaço preferido entre as mesas: 1 metro)
